fUSD/lending_fUSD_20260225
["ID","MTS","AMOUNT","RATE_DAILY","PERIOD"]
[406619264,1771978244850,-745.6,0.00013698,2]
[406619265,1771978244860,-745.6,0.00013698,2]
[406619266,1771978244869,-745.6,0.00013698,2]
[406619267,1771978244879,-745.6,0.00013698,2]
[406619268,1771978244888,-745.6,0.00013698,2]
[406619269,1771978244897,-500.0,0.00013698,2]
[406619270,1771978244907,-500.0,0.00013698,2]
[406619271,1771978244917,-500.0,0.00013698,2]
[406619272,1771978244927,-500.0,0.00013698,2]
[406619273,1771978244936,-500.0,0.00013698,2]
[406619274,1771978244946,-501.58967205,0.00013698,2]
[406619275,1771978244955,-831.01,0.00013698,2]
[406619276,1771978244965,-831.01,0.00013698,2]
[406619277,1771978244974,-831.01,0.00013698,2]
[406619278,1771978244986,-831.01,0.00013698,2]
[406619279,1771978244996,-831.01,0.00013698,2]
[406619280,1771978245006,-831.01,0.00013698,2]
[406619281,1771978245015,-831.01,0.00013698,2]
[406619282,1771978245024,-831.01,0.00013698,2]
[406619283,1771978245035,-831.01,0.00013698,2]
[406619284,1771978245044,-831.01,0.00013698,2]
[406619285,1771978245055,-831.01,0.00013698,2]
[406619286,1771978245065,-831.01,0.00013698,2]
[406619287,1771978245074,-831.01,0.00013698,2]
[406619288,1771978245084,-831.01,0.00013698,2]
[406619289,1771978245093,-831.01,0.00013698,2]
[406619290,1771978245103,-831.01,0.00013698,2]
[406619291,1771978245112,-501.44,0.00013698,2]
[406619292,1771978245122,-501.44,0.00013698,2]
[406619293,1771978245131,-501.44,0.00013698,2]
[406619294,1771978245141,-501.44,0.00013698,2]
[406619295,1771978245150,-501.44,0.00013698,2]
[406619296,1771978245159,-501.44,0.00013698,2]
[406619297,1771978245169,-501.44,0.00013698,2]
[406619298,1771978245178,-501.44,0.00013698,2]
[406619299,1771978245188,-501.44,0.00013698,2]
[406619300,1771978245197,-501.44,0.00013698,2]
[406619301,1771978245207,-501.44,0.00013698,2]
[406619302,1771978245217,-501.44,0.00013698,2]
[406619303,1771978245226,-501.44,0.00013698,2]
[406619304,1771978245235,-501.44,0.00013698,2]
[406619305,1771978245245,-501.44,0.00013698,2]
[406619306,1771978245254,-501.44,0.00013698,2]
[406619307,1771978245264,-834.42,0.00013698,2]
[406619308,1771978245274,-834.42,0.00013698,2]
[406619309,1771978245283,-834.42,0.00013698,2]
[406619310,1771978245293,-834.42,0.00013698,2]
[406619311,1771978245303,-834.42,0.00013698,2]
[406619312,1771978245312,-834.42,0.00013698,2]
[406619313,1771978245322,-834.42,0.00013698,2]
[406619314,1771978245331,-834.42,0.00013698,2]
[406619315,1771978245341,-834.42,0.00013698,2]
[406619316,1771978245350,-834.42,0.00013698,2]
[406619317,1771978245360,-834.42,0.00013698,2]
[406619318,1771978245369,-834.42,0.00013698,2]
[406619319,1771978245378,-834.42,0.00013698,2]
[406619320,1771978245387,-834.42,0.00013698,2]
[406619321,1771978245397,-557.94,0.00013698,2]
[406619322,1771978245406,-834.42,0.00013698,2]
[406619323,1771978245415,-834.42,0.00013698,2]
[406619324,1771978245432,-557.94,0.00013698,2]
[406619325,1771978245443,-557.94,0.00013698,2]
[406619327,1771978245643,-557.94,0.00013698,2]
[406619328,1771978245653,-557.94,0.00013698,2]
[406619329,1771978245662,-557.94,0.00013698,2]
[406619330,1771978245672,-557.94,0.00013698,2]
[406619331,1771978245682,-557.94,0.00013698,2]
[406619332,1771978245692,-557.94,0.00013698,2]
[406619333,1771978245701,-557.94,0.00013698,2]
[406619334,1771978245711,-557.94,0.00013698,2]
[406619335,1771978245720,-557.94,0.00013698,2]
[406619336,1771978245730,-557.94,0.00013698,2]
[406619337,1771978245740,-557.94,0.00013698,2]
[406619338,1771978245749,-557.94,0.00013698,2]
[406619339,1771978245759,-557.94,0.00013698,2]
[406619340,1771978245768,-500.0,0.00013698,2]
[406619341,1771978245778,-500.0,0.00013698,2]
[406619342,1771978245787,-500.0,0.00013698,2]
[406619343,1771978245797,-500.0,0.00013698,2]
[406619344,1771978245807,-500.0,0.00013698,2]
[406619345,1771978245816,-500.0,0.00013698,2]
[406619346,1771978245826,-500.0,0.00013698,2]
[406619347,1771978245835,-500.0,0.00013698,2]
[406619348,1771978245844,-500.0,0.00013698,2]
[406619349,1771978245853,-500.0,0.00013698,2]
[406619350,1771978245862,-527.25,0.00013698,2]
[406619351,1771978245871,-500.0,0.00013698,2]
[406619352,1771978245881,-500.0,0.00013698,2]
[406619354,1771978245890,-500.0,0.00013698,2]
[406619356,1771978245900,-500.0,0.00013698,2]
[406619358,1771978245909,-500.0,0.00013698,2]
[406619360,1771978245920,-500.0,0.00013698,2]
[406619362,1771978245929,-500.0,0.00013698,2]
[406619364,1771978245938,-500.0,0.00013698,2]
[406619366,1771978245947,-500.0,0.00013698,2]
[406619368,1771978245956,-500.0,0.00013698,2]
[406619370,1771978245965,-500.0,0.00013698,2]
[406619371,1771978245975,-500.0,0.00013698,2]
[406619373,1771978245984,-500.0,0.00013698,2]
[406619376,1771978245999,-500.0,0.00013698,2]
[406619377,1771978246008,-500.0,0.00013698,2]
[406619380,1771978246017,-500.0,0.00013698,2]
[406619381,1771978246027,-531.93,0.00013698,2]
[406619384,1771978246037,-531.93,0.00013698,2]
[406619385,1771978246047,-531.93,0.00013698,2]
[406619386,1771978246056,-531.93,0.00013698,2]
[406619387,1771978246067,-531.93,0.00013698,2]
[406619388,1771978246077,-531.93,0.00013698,2]
[406619389,1771978246086,-531.93,0.00013698,2]
[406619390,1771978246095,-531.93,0.00013698,2]
[406619391,1771978246104,-531.93,0.00013698,2]
[406619392,1771978246113,-531.93,0.00013698,2]
[406619393,1771978246123,-531.93,0.00013698,2]
[406619394,1771978246132,-531.93,0.00013698,2]
[406619395,1771978246141,-531.93,0.00013698,2]
[406619396,1771978246151,-531.93,0.00013698,2]
[406619397,1771978246160,-531.93,0.00013698,2]
[406619398,1771978246171,-531.93,0.00013698,2]
[406619399,1771978246180,-500.0,0.00013698,2]
[406619400,1771978246189,-500.0,0.00013698,2]
[406619401,1771978246198,-500.0,0.00013698,2]
[406619402,1771978246207,-150.96195478,0.00013698,2]
[406619403,1771978246216,-1229.1,0.00013698,2]
[406619404,1771978246225,-1229.1,0.00013698,2]
[406619405,1771978246235,-1229.1,0.00013698,2]
[406619406,1771978246244,-1229.1,0.00013698,2]
[406619407,1771978246253,-1229.1,0.00013698,2]
[406619408,1771978246262,-1229.1,0.00013698,2]
[406619409,1771978246271,-1229.1,0.00013698,2]
[406619410,1771978246280,-1229.1,0.00013698,2]
[406619411,1771978246289,-1229.1,0.00013698,2]
[406619412,1771978246299,-1229.1,0.00013698,2]
[406619413,1771978246308,-500.0,0.00013698,2]
[406619414,1771978246318,-1229.1,0.00013698,2]
[406619415,1771978246327,-500.0,0.00013698,2]
[406619416,1771978246336,-500.0,0.00013698,2]
[406619417,1771978246345,-1229.1,0.00013698,2]
[406619418,1771978246355,-500.0,0.00013698,2]
[406619419,1771978246364,-1229.1,0.00013698,2]
[406619420,1771978246373,-268.25985649,0.00013698,2]
[406619421,1771978246383,-1229.1,0.00013698,2]
[406619422,1771978246392,-1229.1,0.00013698,2]
[406619423,1771978246401,-1229.1,0.00013698,2]
[406619424,1771978246410,-16296.14,0.00013699,2]
[406619425,1771978246420,-1334.26,0.00013699,2]
[406619426,1771978246429,-200.0,0.00013699,2]
[406619427,1771978246438,-3309.3,0.000137,2]
[406619428,1771978246447,-3309.3,0.000137,2]
[406619429,1771978246456,-3309.3,0.000137,2]
[406619430,1771978246465,-3309.3,0.000137,2]
[406619431,1771978246475,-3309.3,0.000137,2]
[406619432,1771978246484,-155.0,0.00013706,2]
[406619433,1771978246493,-4609.0,0.0001373,2]
[406619434,1771978246503,-351.678919,0.00013745,7]
[406619435,1771978246512,-4569.634907,0.00013747,7]
[406619436,1771978246521,-745.6,0.0001386,2]
[406619437,1771978246530,-531.93,0.0001386,2]
[406619439,1771978246539,-3500.0,0.0001386,2]
[406619440,1771978246548,-3500.0,0.0001386,2]
[406619441,1771978246557,-2258.70537993,0.0001386,2]
[406619442,1771978246567,-2611.69642164,0.0001386,2]
[406619443,1771978246576,-3500.0,0.0001386,2]
[406619444,1771978246586,-172.88,0.00013932,2]
[406619445,1771978246595,-155.0,0.00014109,2]
[406619446,1771978246605,-1252.0,0.00014122,2]
[406619447,1771978246614,-1104.55,0.00014381,2]
[406619448,1771978246624,-160.0,0.00014381,2]
[406619449,1771978246633,-173.87087054,0.00014381,2]
[406619450,1771978246642,-1334.26,0.00014384,2]
[406619451,1771978246651,-3878.78609231,0.00014408,2]
[406619453,1771978246661,-2125.47133191,0.00014408,2]
[406619454,1771978246671,-4000.0,0.00014408,2]
[406619455,1771978246680,-538.55,0.0001447,2]
[406619456,1771978246690,-482.62263508,0.00014489,2]
[406619457,1771978246699,-664.07,0.00014601,2]
[406619458,1771978246709,-831.01,0.00014601,2]
[406619459,1771978246718,-557.94,0.00014601,2]
[406619460,1771978246728,-1229.1,0.00014601,2]
[406619461,1771978246738,-203.68,0.0001462,2]
[406619462,1771978246748,-333.91,0.0001462,2]
[406619463,1771978246757,-151.0,0.00014634,2]
[406619464,1771978246767,-151.0,0.00014634,2]
[406619466,1771978246776,-151.0,0.00014634,2]
[406619467,1771978246785,-600.0,0.00014688,2]
[406619468,1771978246795,-208.18,0.00014688,2]
[406619469,1771978246804,-1000.0,0.00014742,2]
[406619470,1771978246814,-600.0,0.00014811,2]
[406619471,1771978246824,-503.69,0.00014811,2]
[406619472,1771978246833,-176.18400318,0.000149,2]
[406619473,1771978246842,-4500.0,0.00014956,2]
[406619474,1771978246851,-250.0,0.00015,2]
[406619475,1771978246860,-900.0,0.00015068,2]
[406619476,1771978246869,-1334.26,0.00015068,2]
[406619477,1771978246879,-164.04818431,0.000151,2]
[406619478,1771978246889,-500.0,0.000151,2]
[406619479,1771978246898,-506.17778994,0.000151,2]
[406619480,1771978246908,-500.0,0.000151,2]
[406619481,1771978246917,-500.0,0.000151,2]
[406619483,1771978246927,-500.0,0.000151,2]
[406619484,1771978246936,-500.0,0.000151,2]
[406619485,1771978246945,-500.0,0.000151,2]
[406619486,1771978246954,-500.0,0.000151,2]
[406619487,1771978246964,-500.0,0.000151,2]
[406619488,1771978246973,-500.0,0.000151,2]
[406619489,1771978246983,-500.0,0.000151,2]
[406619490,1771978246995,-500.0,0.000151,2]
[406619491,1771978247004,-500.0,0.000151,2]
[406619492,1771978247014,-503.3459029,0.000151,2]
[406619493,1771978247024,-249.19438992,0.000151,2]
[406619494,1771978247035,-500.0,0.000151,2]
[406619496,1771978247044,-511.86901658,0.000151,2]
[406619497,1771978247052,-162.13031906,0.000151,2]
[406619498,1771978247062,-500.0,0.000151,2]
[406619499,1771978247071,-500.0,0.000151,2]
[406619500,1771978247080,-500.0,0.000151,2]
[406619501,1771978247090,-500.0,0.000151,2]
[406619502,1771978247099,-500.0,0.000151,2]
[406619503,1771978247108,-500.0,0.000151,2]
[406619504,1771978247117,-500.0,0.000151,2]
[406619505,1771978247126,-321.39394586,0.000151,2]
[406619506,1771978247135,-304.38005979,0.000151,2]
[406619507,1771978247144,-500.0,0.000151,2]
[406619508,1771978247153,-500.0,0.000151,2]
[406619509,1771978247162,-500.0,0.000151,2]
[406619510,1771978247172,-500.0,0.000151,2]
[406619511,1771978247181,-500.0,0.000151,2]
[406619512,1771978247191,-500.0,0.000151,2]
[406619513,1771978247200,-162.16417793,0.000151,2]
[406619514,1771978247209,-166.89168146,0.000151,2]
[406619515,1771978247218,-500.0,0.000151,2]
[406619516,1771978247227,-500.0,0.000151,2]
[406619517,1771978247237,-162.83690276,0.000151,2]
[406619519,1771978247246,-500.0,0.000151,2]
[406619520,1771978247255,-487.94127816,0.000151,2]
[406619521,1771978247264,-209.6165406,0.000151,2]
[406619522,1771978247273,-500.0,0.000151,2]
[406619523,1771978247283,-500.0,0.000151,2]
[406619524,1771978247292,-599.206441,0.000151,2]
[406619525,1771978247301,-500.0,0.000151,2]
[406619526,1771978247310,-500.0,0.000151,2]
[406619527,1771978247319,-500.0,0.000151,2]
[406619528,1771978247328,-500.0,0.000151,2]
[406619529,1771978247337,-163.37868708,0.000151,2]
[406619531,1771978247346,-500.0,0.000151,2]
[406619532,1771978247355,-186.88471708,0.000151,2]
[406619533,1771978247364,-170.38160206,0.000151,2]
[406619534,1771978247372,-168.61283304,0.000151,2]
[406619535,1771978247381,-162.01971634,0.000151,2]
[406619536,1771978247390,-6453.0,0.00015103,2]
[406619537,1771978247399,-482.62263511,0.00015138,2]
[406619538,1771978247408,-1210.063,0.00015302,2]
[406619539,1771978247417,-920.0,0.00015302,2]
[406619540,1771978247426,-2494.598,0.00015302,2]
[406619541,1771978247435,-5980.0,0.00015302,2]
[406619542,1771978247444,-461.306,0.00015302,2]
[406619543,1771978247453,-5000.0,0.00015504,2]
[406619545,1771978247462,-1000.0,0.00015507,2]
[406619546,1771978247471,-482.62263511,0.00015516,2]
[406619547,1771978247480,-2129.0,0.00015539,2]
[406619548,1771978247490,-200.0,0.00015647,2]
[406619549,1771978247499,-521.28615412,0.00015648,2]
[406619550,1771978247508,-1000.0,0.00015648,2]
[406619551,1771978247517,-901.66587779,0.00015648,2]
[406619552,1771978247526,-505.16535574,0.00015648,2]
[406619553,1771978247535,-399.24111128,0.00015648,2]
[406619554,1771978247544,-1000.0,0.00015648,2]
[406619555,1771978247553,-1000.0,0.00015648,2]
[406619556,1771978247562,-1000.0,0.00015648,2]
[406619557,1771978247571,-1000.0,0.00015648,2]
[406619558,1771978247580,-1000.0,0.00015648,2]
[406619559,1771978247590,-1000.0,0.00015648,2]
[406619560,1771978247599,-1000.0,0.00015648,2]
[406619561,1771978247608,-1000.0,0.00015648,2]
[406619562,1771978247617,-1000.0,0.00015648,2]
[406619564,1771978247626,-1000.0,0.00015648,2]
[406619565,1771978247635,-702.01765038,0.00015648,2]
[406619566,1771978247644,-996.70155194,0.00015648,2]
[406619567,1771978247653,-1028.84101903,0.00015648,2]
[406619569,1771978247662,-158.07153159,0.00015648,2]
[406619570,1771978247671,-1000.0,0.00015648,2]
[406619571,1771978247681,-1092.86766843,0.00015648,2]
[406619572,1771978247690,-1000.0,0.00015648,2]
[406619573,1771978247699,-1000.0,0.00015648,2]
[406619574,1771978247708,-1000.0,0.00015648,2]
[406619575,1771978247718,-1008.9890561,0.00015648,2]
[406619576,1771978247727,-1000.0,0.00015648,2]
[406619577,1771978247736,-1000.0,0.00015648,2]
[406619578,1771978247745,-583.60061699,0.00015648,2]
[406619579,1771978247755,-1000.0,0.00015648,2]
[406619580,1771978247764,-1000.0,0.00015648,2]
[406619581,1771978247774,-1000.0,0.00015648,2]
[406619582,1771978247783,-503.06431107,0.00015648,2]
[406619583,1771978247792,-436.95947364,0.00015648,2]
[406619584,1771978247801,-1014.39606761,0.00015648,2]
[406619585,1771978247811,-1000.0,0.00015648,2]
[406619586,1771978247820,-402.52681035,0.00015648,2]
[406619587,1771978247829,-14294.18937678,0.00015655,2]
[406619588,1771978247839,-1104.55,0.00015689,2]
[406619589,1771978247849,-1334.26,0.00015753,2]
[406619590,1771978247859,-269.0,0.00015775,2]
[406619591,1771978247868,-200.0,0.00015775,2]
[406619592,1771978247877,-200.0,0.00015775,2]
[406619593,1771978247886,-233.366,0.00015775,2]
[406619594,1771978247895,-172.0,0.00015775,2]
[406619595,1771978247905,-250.0,0.00015775,2]
[406619596,1771978247914,-198.998,0.00015775,2]
[406619597,1771978247923,-160.568,0.00015775,2]
[406619598,1771978247933,-250.0,0.00015775,2]
[406619599,1771978247942,-192.379,0.00015775,2]
[406619600,1771978247951,-165.07,0.00015775,2]
[406619601,1771978247960,-213.621,0.00015775,2]
[406619602,1771978247970,-250.0,0.00015775,2]
[406619603,1771978247979,-175.0,0.00015775,2]
[406619604,1771978247991,-235.267,0.00015775,2]
[406619605,1771978248001,-618.0,0.00015775,2]
[406619606,1771978248011,-1339.0,0.00015775,2]
[406619607,1771978248020,-3496.0,0.00015775,2]
[406619608,1771978248031,-1040.0,0.00015775,2]
[406619609,1771978248040,-268.662,0.00015775,2]
[406619610,1771978248049,-1277.0,0.00015775,2]
[406619611,1771978248058,-3224.35357671,0.00015892,2]
[406619612,1771978248070,-1000.0,0.00015895,2]
[406619613,1771978248079,-482.62263511,0.00015895,2]
[406619614,1771978248088,-4571.89980967,0.00016052,2]
[406619615,1771978248097,-9999.99,0.00016116,2]
[406619616,1771978248106,-474.91571766,0.00016196,2]
[406619617,1771978248115,-1390.05507377,0.00016196,2]
[406619618,1771978248124,-1500.0,0.00016196,2]
[406619619,1771978248133,-1500.0,0.00016196,2]
[406619620,1771978248142,-346.49305223,0.00016196,2]
[406619621,1771978248152,-605.8929222,0.00016196,2]
[406619622,1771978248161,-1500.0,0.00016196,2]
[406619623,1771978248170,-1500.0,0.00016196,2]
[406619624,1771978248180,-1500.0,0.00016196,2]
[406619625,1771978248189,-1500.0,0.00016196,2]
[406619626,1771978248198,-1500.0,0.00016196,2]
[406619627,1771978248207,-817.40894872,0.00016196,2]
[406619628,1771978248217,-1500.0,0.00016196,2]
[406619629,1771978248226,-602.53164684,0.00016196,2]
[406619630,1771978248236,-1500.0,0.00016196,2]
[406619631,1771978248245,-659.69197378,0.00016196,2]
[406619632,1771978248255,-1500.0,0.00016196,2]
[406619633,1771978248264,-1007.05086599,0.00016196,2]
[406619634,1771978248274,-1500.0,0.00016196,2]
[406619635,1771978248283,-1500.0,0.00016196,2]
[406619636,1771978248292,-953.27277481,0.00016196,2]
[406619637,1771978248301,-508.33,0.00016199,2]
[406619638,1771978248311,-500.0,0.00016199,2]
[406619639,1771978248319,-578.91,0.00016199,2]
[406619640,1771978248329,-501.44,0.00016199,2]
[406619641,1771978248338,-834.42,0.00016199,2]
[406619642,1771978248347,-482.62263511,0.00016273,2]
[406619643,1771978248356,-1000.0,0.00016282,2]
[406619644,1771978248365,-626.11,0.00016438,2]
[406619645,1771978248374,-626.11,0.00016438,3]
[406619646,1771978248383,-626.11,0.00016438,4]
[406619647,1771978248393,-626.11,0.00016438,5]
[406619648,1771978248403,-626.11,0.00016438,6]
[406619649,1771978248412,-626.11,0.00016438,7]
[406619650,1771978248422,-626.11,0.00016438,8]
[406619651,1771978248431,-626.11,0.00016438,9]
[406619652,1771978248441,-626.11,0.00016438,10]
[406619653,1771978248450,-626.11,0.00016438,11]
[406619654,1771978248459,-626.11,0.00016438,12]
[406619655,1771978248468,-626.11,0.00016438,13]
[406619656,1771978248477,-626.11,0.00016438,14]
[406619657,1771978248486,-626.11,0.00016438,15]
[406619658,1771978248495,-626.11,0.00016438,16]
[406619659,1771978248505,-626.11,0.00016438,17]
[406619660,1771978248514,-626.11,0.00016438,18]
[406619661,1771978248523,-900.0,0.00016438,2]
[406619662,1771978248532,-1334.26,0.00016438,2]
[406619663,1771978248541,-150.0,0.00016438,2]
[406619664,1771978248550,-9035.0,0.00016614,2]
[406619665,1771978248559,-482.62263511,0.00016651,2]
[406619666,1771978248568,-1000.0,0.0001667,2]
[406619668,1771978248577,-165.38,0.00016712,2]
[406619670,1771978248586,-2000.0,0.00016744,2]
[406619672,1771978248595,-2003.05357398,0.00016744,2]
[406619673,1771978248605,-642.81462324,0.00016744,2]
[406619675,1771978248614,-500.17462146,0.00016744,2]
[406619677,1771978248623,-2000.0,0.00016744,2]
[406619679,1771978248632,-1017.72340136,0.00016744,2]
[406619681,1771978248642,-510.93637167,0.00016744,2]
[406619684,1771978248651,-2000.0,0.00016744,2]
[406619686,1771978248660,-1755.82806005,0.00016744,2]
[406619687,1771978248671,-2000.0,0.00016744,2]
[406619689,1771978248680,-745.6,0.00016755,2]
[406619692,1771978248689,-531.93,0.00016755,2]
[406619694,1771978248699,-626.11,0.00016882,19]
[406619696,1771978248708,-203.68,0.00016899,2]
[406619698,1771978248717,-333.91,0.00016899,2]
[406619700,1771978248727,-150.0,0.00016986,2]
[406619702,1771978248736,-300.0,0.00017,2]
[406619704,1771978248745,-482.62263511,0.0001703,2]
[406619706,1771978248755,-600.0,0.00017035,2]
[406619708,1771978248764,-208.18,0.00017035,2]
[406619710,1771978248773,-1000.0,0.00017058,2]
[406619712,1771978248782,-3620.0,0.00017092,2]
[406619714,1771978248791,-600.0,0.0001714,2]
[406619716,1771978248800,-503.69,0.0001714,2]
[406619718,1771978248809,-1016.90418138,0.00017233,2]
[406619720,1771978248818,-664.07,0.00017291,2]
[406619722,1771978248827,-831.01,0.00017291,2]
[406619724,1771978248836,-557.94,0.00017291,2]
[406619725,1771978248846,-1229.1,0.00017291,2]
[406619727,1771978248855,-978.4151051,0.00017292,2]
[406619730,1771978248864,-2500.0,0.00017292,2]
[406619732,1771978248874,-1017.25085579,0.00017292,2]
[406619734,1771978248885,-2500.0,0.00017292,2]
[406619735,1771978248894,-317.81648204,0.00017319,2]
[406619737,1771978248903,-537.83245429,0.00017335,2]
[406619739,1771978248912,-482.62263511,0.00017408,2]
[406619741,1771978248921,-168.0,0.00017475,2]
[406619743,1771978248931,-202.37532473,0.00017534,2]
[406619745,1771978248940,-168.0,0.00017711,2]
[406619747,1771978248950,-482.62263511,0.00017787,2]
[406619749,1771978248959,-763.34444524,0.00017808,2]
[406619751,1771978248968,-763.34444524,0.00017808,2]
[406619753,1771978248977,-763.34444524,0.00017808,2]
[406619755,1771978248987,-763.34444524,0.00017808,2]
[406619757,1771978248999,-763.34444524,0.00017808,2]
[406619760,1771978249009,-763.34444524,0.00017808,2]
[406619761,1771978249018,-763.34444524,0.00017808,2]
[406619762,1771978249030,-763.34444524,0.00017808,2]
[406619763,1771978249039,-763.34444524,0.00017808,2]
[406619764,1771978249048,-763.34444524,0.00017808,2]
[406619765,1771978249057,-763.34444524,0.00017808,2]
[406619766,1771978249067,-763.34444524,0.00017808,2]
[406619767,1771978249076,-763.34444524,0.00017808,2]
[406619778,1771978249215,-763.34444524,0.00017808,2]
[406619780,1771978249240,-792.70384698,0.00017808,2]
[406619782,1771978249249,-792.70384698,0.00017808,2]
[406619784,1771978249257,-792.70384698,0.00017808,2]
[406619786,1771978249266,-792.70384698,0.00017808,2]
[406619788,1771978249275,-792.70384698,0.00017808,2]
[406619790,1771978249284,-792.70384698,0.00017808,2]
[406619792,1771978249294,-792.70384698,0.00017808,2]
[406619794,1771978249303,-792.70384698,0.00017808,2]
[406619796,1771978249311,-792.70384698,0.00017808,2]
[406619798,1771978249321,-792.70384698,0.00017808,2]
[406619800,1771978249330,-989.22834239,0.00017808,2]
[406619802,1771978249340,-989.22834239,0.00017808,2]
[406619804,1771978249349,-989.22834239,0.00017808,2]
[406619806,1771978249359,-800.0,0.00017808,2]
[406619808,1771978249368,-2500.0,0.0001784,2]
[406619810,1771978249378,-200.21212036,0.0001784,2]
[406619812,1771978249387,-168.0,0.00017941,2]
[406619814,1771978249397,-508.33,0.00017999,2]
[406619816,1771978249406,-626.11,0.00017999,20]
[406619818,1771978249415,-578.91,0.00017999,2]
[406619820,1771978249425,-501.44,0.00017999,2]
[406619822,1771978249434,-834.42,0.00017999,2]
[406619824,1771978249443,-163209.13998178,0.00018,2]
[406619826,1771978249453,-664.07,0.0001803,2]
[406619828,1771978249462,-745.6,0.0001803,2]
[406619830,1771978249471,-831.01,0.0001803,2]
[406619832,1771978249480,-557.94,0.0001803,2]
[406619834,1771978249489,-531.93,0.0001803,2]
[406619836,1771978249498,-1229.1,0.0001803,2]
[406619838,1771978249507,-2000.0,0.000181,2]
[406619840,1771978249516,-155.0,0.0001814,2]
[406619842,1771978249525,-482.62263511,0.00018165,2]
[406619844,1771978249533,-2000.0,0.000182,2]
[406619846,1771978249542,-12649.0,0.00018275,2]
[406619848,1771978249551,-2000.0,0.000183,2]
[406619850,1771978249561,-1210.0,0.00018302,2]
[406619852,1771978249569,-920.0,0.00018302,2]
[406619854,1771978249579,-2455.0,0.00018302,2]
[406619856,1771978249588,-5980.0,0.00018302,2]
[406619858,1771978249596,-413.0,0.00018302,2]
[406619860,1771978249606,-820.584146,0.00018327,7]
[406619862,1771978249615,-10662.48145,0.00018329,7]
[406619864,1771978249625,-168.0,0.00018368,2]
[406619866,1771978249634,-2018.103,0.000184,2]
[406619868,1771978249643,-168.0,0.00018494,2]
[406619870,1771978249652,-14294.18937678,0.00018605,2]
[406619872,1771978249661,-150.0,0.00018775,2]
[406619874,1771978249671,-150.0,0.00018775,2]
[406619876,1771978249680,-150.0,0.00018775,2]
[406619878,1771978249689,-150.0,0.00018775,2]
[406619880,1771978249699,-150.0,0.00018775,2]
[406619882,1771978249707,-150.0,0.00018775,2]
[406619884,1771978249717,-150.0,0.00018775,2]
[406619886,1771978249727,-150.0,0.00018775,2]
[406619888,1771978249736,-150.0,0.00018775,2]
[406619890,1771978249746,-150.0,0.00018775,2]
[406619892,1771978249755,-150.0,0.00018775,2]
[406619894,1771978249764,-618.0,0.00018775,2]
[406619896,1771978249773,-1339.0,0.00018775,2]
[406619898,1771978249782,-3496.0,0.00018775,2]
[406619900,1771978249792,-1040.0,0.00018775,2]
[406619902,1771978249801,-150.0,0.00018775,2]
[406619904,1771978249810,-1277.0,0.00018775,2]
[406619906,1771978249820,-6155.0,0.000188,2]
[406619908,1771978249830,-1600.0,0.00018904,2]
[406619910,1771978249839,-350.0,0.00019,2]
[406619912,1771978249848,-3000.0,0.00019178,2]
[406619914,1771978249857,-373.05934135,0.00019178,7]
[406619916,1771978249867,-482.62264482,0.00019276,2]